bitfinex-derivatives/quotes_ETHF0:USTF0_20240826
["timestamp","ask_amount","ask_price","bid_price","bid_amount"]
[1724671407909,0.3644,2743.5,2743.4,0.3644]
[1724671408205,0.3644,2743.5,2743.4,1.6744]
[1724671408412,4.0092,2743.5,2743.4,1.6744]
[1724671408702,0.3644,2743.5,2743.4,1.6744]
[1724671409103,0.3644,2743.5,2743.4,1.31]
[1724671409604,0.3644,2743.5,2743.4,1.67441]
[1724671409802,0.3644,2743.5,2743.4,2.02591]
[1724671411810,4.0092,2743.5,2743.4,1.6615]
[1724671412001,4.0092,2743.5,2743.4,2.02591]
[1724671412703,4.0092,2743.5,2743.4,1.6615]
[1724671413299,4.0092,2743.5,2743.4,2.02591]
[1724671415711,4.0092,2743.5,2743.4,0.3515]
[1724671415911,0.36441,2743.4,2743.3,4.88221]
[1724671417601,0.36441,2743.4,2743.3,3.2078]
[1724671417801,0.36445,2743.1,2743.0,3.21105957]
[1724671418213,0.3662,2743.1,2743.0,4.88550957]
[1724671418400,4.9098,2743.6,2743.0,4.90515957]
[1724671418599,4.9098,2743.6,2743.3,1.31]
[1724671418600,0.3662,2743.4,2743.3,1.31]
[1724671418806,0.3662,2743.4,2743.0,3.59515957]
[1724671418807,0.73061,2743.4,2743.2,1.31]
[1724671419006,0.73061,2743.4,2743.2,1.67442]
[1724671419007,0.36442,2743.3,2743.2,1.67442]
[1724671419208,0.73062,2743.4,2743.3,0.36442]
[1724671419605,0.73062,2743.4,2743.3,0.72802]
[1724671420905,0.3644,2743.5,2743.4,0.36441]
[1724671422713,0.36441,2743.4,2743.3,0.36441]
[1724671423513,0.36442,2743.3,2743.2,2.03852]
[1724671425210,0.36442,2743.3,2743.2,0.72852]
[1724671429616,1.27548,2743.3,2743.2,0.72852]
[1724671431210,2.18661,2743.2,2743.1,0.3506]
[1724671431419,2.18669,2743.1,2743.0,3.21105957]
[1724671431713,3.49669,2743.1,2743.0,3.21105957]
[1724671431918,7.14229,2743.1,2743.0,3.21105957]
[1724671432517,4.92117,2743.1,2743.0,3.21105957]
[1724671432710,1.27557,2743.1,2743.0,3.21105957]
[1724671433516,0.36445,2743.1,2743.0,3.21105957]
[1724671434318,0.36445,2743.1,2743.0,3.57551957]
[1724671434514,0.36443,2743.2,2743.1,0.36444]
[1724671434737,0.359,2743.4,2743.1,1.6796]
[1724671435019,0.72341,2743.4,2743.3,1.67442]
[1724671436116,0.36442,2743.3,2743.2,1.09412]
[1724671436416,0.36443,2743.2,2743.1,2.04404]
[1724671436619,1.27552,2743.2,2743.1,0.73405]
[1724671437021,0.36443,2743.2,2743.1,0.73405]
[1724671437323,0.36443,2743.2,2743.1,2.04405]
[1724671445228,0.36442,2743.4,2743.3,0.36441]
[1724671445417,0.9109,2743.8,2743.3,1.31]
[1724671445616,0.36439,2743.7,2743.6,0.36437]
[1724671445816,0.36439,2743.7,2743.6,0.74537]
[1724671446126,1.27531,2743.7,2743.6,0.381]
[1724671447024,1.27531,2743.7,2743.6,0.74538]
[1724671447927,1.27531,2743.7,2743.6,0.381]
[1724671448124,1.27538,2743.5,2743.4,0.7204]
[1724671448324,1.27543,2743.4,2743.3,0.36442]
[1724671448630,0.36442,2743.3,2743.2,1.70332489]
[1724671448828,0.36442,2743.3,2743.2,1.89790914]
[1724671449028,1.27547,2743.3,2743.2,1.89790914]
[1724671449229,2.58547,2743.3,2743.2,0.3869]
[1724671449435,0.36445,2743.1,2743.0,4.16305446]
[1724671449735,0.36445,2743.1,2743.0,4.72209502]
[1724671450326,0.36445,2743.1,2743.0,5.08655502]
[1724671450528,0.36445,2743.1,2743.0,4.72209502]
[1724671451239,0.36445,2743.1,2743.0,5.08655502]
[1724671454134,0.71754,2743.2,2743.1,0.36445]
[1724671455133,0.36443,2743.3,2743.2,0.36443]
[1724671455331,0.36443,2743.3,2743.2,2.64663353]
[1724671455834,0.36443,2743.3,2743.2,1.33020864]
[1724671456139,0.36443,2743.3,2743.2,0.7712]
[1724671456335,0.75003,2743.3,2743.2,0.7712]
[1724671456945,0.75003,2743.3,2743.2,1.13563]
[1724671458139,0.75003,2743.3,2743.2,0.7712]
[1724671458933,1.66109,2743.3,2743.2,0.7712]
[1724671460351,0.75003,2743.3,2743.2,1.13563]
[1724671460644,1.28451,2743.5,2743.4,0.3644]
[1724671460645,0.36441,2743.5,2743.4,0.3644]
[1724671461032,0.36441,2743.4,2743.3,3.01282539]
[1724671461229,0.36441,2743.4,2743.3,2.61611017]
[1724671461440,0.36441,2743.4,2743.3,0.74711]
[1724671462239,0.36441,2743.4,2743.3,0.3827]
[1724671462442,0.36442,2743.3,2743.2,0.7712]
[1724671462630,1.65137,2743.3,2743.2,1.33022715]
[1724671463034,1.65137,2743.3,2743.2,1.72691539]
[1724671463340,1.65137,2743.3,2743.2,1.33022726]
[1724671463739,0.91095,2743.7,2743.2,3.59594265]
[1724671464038,0.36441,2743.4,2743.3,1.879123]
[1724671464246,0.36441,2743.4,2743.3,0.92340761]
[1724671464443,0.36441,2743.4,2743.3,1.879123]
[1724671464742,0.3644,2743.5,2743.4,0.3644]
[1724671465136,4.0092,2743.5,2743.4,0.3644]
[1724671469241,1.27543,2743.4,2743.3,3.2078]
[1724671469437,2.03933,2743.4,2743.3,3.2078]
[1724671469652,1.27547,2743.3,2743.2,0.36443]
[1724671469955,1.27547,2743.3,2743.2,0.92345487]
[1724671470135,1.27547,2743.3,2743.2,0.36443]
[1724671470340,0.36443,2743.2,2743.1,3.01355539]
[1724671470549,0.71673,2743.2,2743.1,5.39541732]
[1724671470747,6.58342,2743.2,2743.1,3.33758302]
[1724671470951,0.36445,2743.1,2743.0,1.32343496]
[1724671471143,0.36445,2743.1,2743.0,3.34095281]
[1724671471648,0.36445,2743.1,2743.0,1.88247751]
[1724671471952,0.36445,2743.1,2743.0,4.4563508]
[1724671472156,0.36445,2743.1,2743.0,5.01538722]
[1724671472338,0.36445,2743.1,2743.0,4.05967183]
[1724671472648,1.26339,2743.2,2743.1,0.36445]
[1724671472649,0.36444,2743.2,2743.1,0.36445]
[1724671472845,0.36444,2743.2,2743.1,1.87927249]
[1724671473348,0.71712,2743.4,2743.3,0.36442]
[1724671473541,0.36442,2743.4,2743.3,1.67442]
[1724671473741,0.71712,2743.4,2743.3,1.67442]
[1724671475144,0.71712,2743.4,2743.3,2.03562]
[1724671475743,0.71712,2743.4,2743.3,5.24342]
[1724671476051,0.71712,2743.4,2743.3,7.12980089]
[1724671476754,0.71712,2743.4,2743.3,5.61502]
[1724671477646,0.3527,2743.4,2743.3,5.61502]
[1724671478043,0.3644,2743.5,2743.4,0.36441]
[1724671481855,0.36441,2743.4,2743.3,4.88920607]
[1724671482158,1.65975,2743.4,2743.3,4.52478607]
[1724671482346,0.36441,2743.4,2743.3,4.16358607]
[1724671483045,0.36441,2743.4,2743.3,4.52800607]
[1724671483353,1.27545,2743.4,2743.3,4.16358607]
[1724671483554,6.23025,2743.4,2743.3,0.95578607]
[1724671484355,6.23025,2743.4,2743.2,0.95578607]
[1724671484356,0.36442,2743.3,2743.2,0.95578607]
[1724671484552,0.36442,2743.3,2743.2,1.32022607]
[1724671485458,0.36442,2743.3,2743.2,1.87926391]
[1724671485659,0.36442,2743.3,2743.2,1.32022607]
[1724671486961,0.36442,2743.3,2743.2,3.18924558]
[1724671488159,0.36442,2743.3,2743.2,2.63021607]
[1724671488459,0.36442,2743.3,2743.2,1.87924799]
[1724671491363,0.36442,2743.3,2743.2,1.51481799]
[1724671491868,1.27549,2743.3,2743.2,1.51481799]
[1724671493557,1.27549,2743.3,2743.2,0.95578607]
[1724671493757,0.36442,2743.3,2743.2,1.87925866]
[1724671493965,0.36442,2743.3,2743.2,1.32022607]
[1724671495064,0.36444,2743.2,2743.1,0.95578607]
[1724671495270,1.27559,2743.1,2743.0,0.00325957]
[1724671495575,6.23119,2743.1,2743.0,0.00325957]
[1724671495861,11.23119,2743.1,2743.0,0.00325957]
[1724671496066,6.23119,2743.1,2743.0,0.00325957]
[1724671496264,0.91114,2743.1,2742.5,5.27076962]
[1724671496569,0.91114,2743.1,2742.5,1.42799234]
[1724671496570,0.36449,2742.9,2742.5,1.42799234]
[1724671496761,0.36449,2742.9,2742.8,0.36448]
[1724671496963,0.63797117,2742.9,2742.8,0.36448]
[1724671497159,0.63797117,2742.9,2742.7,1.31]
[1724671497160,0.63797117,2742.9,2742.5,1.42799234]
[1724671497364,0.36449,2742.9,2742.8,0.36448]
[1724671498065,0.3645,2742.8,2742.7,0.36449]
[1724671498260,0.384,2742.8,2742.5,0.00355918]
[1724671498461,0.36452,2742.6,2742.5,0.36808918]
[1724671498768,0.36452,2742.6,2742.4,1.31546508]
[1724671498769,1.67453,2742.6,2742.4,0.36453]
[1724671499160,1.67453,2742.6,2742.5,0.36453]
[1724671499763,1.67453,2742.6,2742.5,0.36837231]
[1724671500671,1.67453,2742.6,2742.5,0.00384231]
[1724671501169,1.67453,2742.6,2742.5,0.36453]
[1724671501369,0.36453,2742.6,2742.4,1.31]
[1724671501571,0.74551,2742.7,2742.6,0.36452]
[1724671501776,0.36452,2742.6,2742.5,1.67452]
[1724671502369,0.36452,2742.6,2742.5,1.67811851]
[1724671503267,0.36452,2742.6,2742.5,2.86325298]
[1724671503976,4.12444508,2743.0,2742.5,6.14513298]
[1724671503977,3.57773508,2743.0,2742.5,6.14513298]
[1724671504271,3.96343508,2743.0,2742.8,0.36448]
[1724671504473,0.36448,2742.9,2742.8,0.36448]
[1724671504779,0.36448,2742.9,2742.8,1.54953097]
[1724671505172,1.67448,2742.9,2742.8,1.54953097]
[1724671505973,1.67448,2742.9,2742.8,0.36448]
[1724671506163,1.67448,2742.9,2742.8,1.09377088]
[1724671506864,1.67448,2742.9,2742.8,0.72929088]
[1724671507065,1.67448,2742.9,2742.8,1.18509768]
[1724671508067,0.36448,2742.9,2742.8,1.54958768]
[1724671508268,1.67448,2742.9,2742.8,1.18509768]
[1724671508774,2.58568,2742.9,2742.8,1.18509768]
[1724671509278,0.3645,2742.7,2742.6,0.74591]
[1724671509478,0.3645,2742.7,2742.6,1.93104954]
[1724671512777,0.3645,2742.7,2742.6,0.74591]
[1724671512974,0.3645,2742.7,2742.6,1.93104286]
[1724671513187,0.3645,2742.7,2742.6,3.11617566]
[1724671513374,3.21326508,2743.0,2742.9,0.36448]
[1724671513576,3.21326508,2743.0,2742.9,2.8596128]
[1724671513776,3.21326508,2743.0,2742.9,7.4164128]
[1724671514579,3.21326508,2743.0,2742.9,7.7963128]
[1724671514971,0.00546508,2743.0,2742.9,8.7075128]
[1724671515178,0.00546508,2743.0,2742.9,9.26810229]
[1724671516075,3.5663,2743.7,2742.9,9.26810229]
[1724671516076,3.2078,2743.7,2743.6,0.36438]
[1724671516384,3.2078,2743.7,2743.6,2.13006756]
[1724671516571,3.2078,2743.7,2743.6,2.85912376]
[1724671517978,3.2078,2743.7,2743.6,1.54912376]
[1724671519181,3.2078,2743.7,2743.6,5.19392376]
[1724671519681,3.2078,2743.7,2743.6,4.00918]
[1724671519881,3.2078,2743.7,2743.6,5.19383768]
[1724671520479,0.00546508,2743.9,2743.8,0.36436]
[1724671520782,0.00546508,2743.9,2743.8,1.54901768]
[1724671520985,0.00546508,2743.9,2743.8,5.19381768]
[1724671521985,0.00546508,2743.9,2743.8,1.18465768]
[1724671522174,0.36980508,2743.9,2743.8,1.18465768]
[1724671522580,0.00546508,2743.9,2743.8,1.18465768]
[1724671522778,0.00546508,2743.9,2743.8,1.54901768]
[1724671522990,0.00546508,2743.9,2743.8,1.54887692]
[1724671523790,0.00546508,2743.9,2743.8,5.19367692]
[1724671526685,0.00546508,2743.9,2743.8,6.10457692]
[1724671526878,0.00546508,2743.9,2743.8,6.46297692]
[1724671527995,0.00290996,2744.2,2744.1,0.36432]
[1724671528204,0.00290996,2744.2,2744.1,5.60963692]
[1724671528489,0.36419,2745.1,2744.1,5.60963692]
[1724671528490,4.187,2745.4,2744.8,0.36422]
[1724671528692,0.7232,2745.2,2744.3,0.91071]
[1724671528996,0.00546508,2745.0,2744.7,0.36423]
[1724671529389,0.0100747,2745.0,2744.7,0.36715922]
[1724671529587,0.0100747,2745.0,2744.8,0.45542205]
[1724671529792,0.0100747,2745.0,2744.9,0.72901]
[1724671530392,0.0100747,2745.0,2744.9,4.37221]
[1724671531396,0.0100747,2745.0,2744.9,8.03537274]
[1724671531691,0.0100747,2745.0,2744.9,8.42337274]
[1724671532294,0.0100747,2745.0,2744.9,7.96801]
[1724671535194,0.0100747,2745.0,2744.9,12.96801]
[1724671536183,0.0100747,2745.0,2744.9,17.02854]
[1724671536991,0.0100747,2745.0,2744.9,22.82854]
[1724671537897,0.0100747,2745.0,2744.9,16.91801]
[1724671538100,0.0100747,2745.0,2744.9,21.91801]
[1724671539091,0.0100747,2745.0,2744.9,16.91801]
[1724671539394,0.0100747,2745.0,2744.9,0.36421]
[1724671540490,0.0100747,2745.0,2744.8,0.36422]
[1724671540890,0.0100747,2745.0,2744.7,0.36715922]
[1724671540891,0.7255747,2745.0,2744.7,0.36715922]
[1724671541092,0.36422,2744.9,2744.7,0.00292922]
[1724671541497,3.5691747,2745.0,2744.7,0.00292922]
[1724671541907,0.36422,2744.8,2744.7,0.00292922]
[1724671542202,0.36422,2744.9,2744.7,0.00292922]
[1724671542503,3.9333847,2745.0,2744.7,0.00292922]
[1724671542696,3.9333847,2745.0,2744.7,0.36716922]
[1724671544897,3.5691747,2745.0,2744.8,0.36422]
[1724671545907,3.5691747,2745.0,2744.9,0.36421]
[1724671546601,0.0100747,2745.0,2744.9,0.36421]
[1724671546807,0.0100747,2745.0,2744.9,4.00741]
[1724671547102,0.0100747,2745.0,2744.9,4.91794]
[1724671548011,0.0100747,2745.0,2744.9,4.00741]
[1724671549807,0.0100747,2745.0,2744.9,4.91794]
[1724671550000,0.0100747,2745.0,2744.9,13.06794]
[1724671550205,0.0100747,2745.0,2744.9,13.97847]
[1724671551002,0.0100747,2745.0,2744.9,13.06794]
[1724671551208,0.0100747,2745.0,2744.9,7.15741]
[1724671551607,0.0100747,2745.0,2744.9,8.06794]
[1724671552210,0.0100747,2745.0,2744.9,13.06794]
[1724671552711,0.0100747,2745.0,2744.9,8.06794]
[1724671555413,0.0100747,2745.0,2744.9,3.51421]
[1724671556323,0.0100747,2745.0,2744.9,0.36421]
[1724671557513,0.0100747,2745.0,2744.9,1.27474]
[1724671558517,0.0100747,2745.0,2744.9,1.73008446]
[1724671559623,0.0100747,2745.0,2744.9,0.81957422]
[1724671561316,0.0100747,2745.0,2744.9,1.54817056]
[1724671565324,0.0100747,2745.0,2744.9,1.54814127]
[1724671565629,0.0100747,2745.0,2744.9,4.75594127]
[1724671566219,0.0100747,2745.0,2744.9,5.66647127]
[1724671566514,0.0100747,2745.0,2744.9,9.72700127]
[1724671567328,0.0100747,2745.0,2744.9,13.37020127]
[1724671567523,0.0100747,2745.0,2744.9,13.93048822]
[1724671567821,0.0100747,2745.0,2744.9,14.3858464]
[1724671568428,0.0100747,2745.0,2744.9,16.20706418]
[1724671568623,0.0100747,2745.0,2744.9,13.82555945]
[1724671568821,0.0100747,2745.0,2744.9,14.38583984]
[1724671569428,0.0100747,2745.0,2744.9,16.20712258]
[1724671570331,0.0100747,2745.0,2744.9,16.95187137]
[1724671570526,0.0100747,2745.0,2744.9,18.3721895]
[1724671571233,0.0100747,2745.0,2744.9,20.1932595]
[1724671571532,0.0100747,2745.0,2744.9,20.20184036]
[1724671572029,0.0100747,2745.0,2744.9,21.62763292]
[1724671572225,0.0100747,2745.0,2744.9,22.75187531]
[1724671572423,0.0100747,2745.0,2744.9,21.23645173]
[1724671572626,0.0100747,2745.0,2744.9,22.46135091]
[1724671572822,0.0100747,2745.0,2744.9,23.27033559]
[1724671573223,0.0100747,2745.0,2744.9,23.39302226]
[1724671573427,0.0100747,2745.0,2744.9,28.936817]
[1724671573826,0.0100747,2745.0,2744.9,28.93682447]
[1724671574221,0.0100747,2745.0,2744.9,28.93691984]
[1724671574421,0.0100747,2745.0,2744.9,25.29419989]
[1724671574632,0.0100747,2745.0,2744.9,28.93696269]
[1724671575026,0.0100747,2745.0,2744.9,28.93695215]
[1724671575427,0.0100747,2745.0,2744.9,27.40806655]
[1724671575836,0.0100747,2745.0,2744.9,29.31640942]
[1724671576134,0.0100747,2745.0,2744.9,27.40806655]
[1724671576330,0.0100747,2745.0,2744.9,29.06119784]
[1724671577137,0.0100747,2745.0,2744.9,31.44588503]
[1724671577728,0.0100747,2745.0,2744.9,29.06119784]
[1724671578527,0.0100747,2745.0,2744.9,25.41799784]
[1724671578732,0.0100747,2745.0,2744.9,29.06119784]
[1724671579231,0.0100747,2745.0,2744.9,31.44579714]
[1724671579624,0.0100747,2745.0,2744.9,29.06110995]
[1724671580031,0.0100747,2745.0,2744.9,31.44579714]
[1724671580231,0.00015528,2745.0,2744.9,32.01497644]
[1724671580723,0.00015528,2745.0,2744.9,29.63028925]
[1724671581939,0.00015528,2745.0,2744.9,32.72617383]
[1724671582627,0.00015528,2745.0,2744.9,31.45096872]
[1724671583232,0.00015528,2745.0,2744.9,31.45041451]
[1724671584239,0.00015528,2745.0,2744.9,31.63648126]
[1724671584533,0.00015528,2745.0,2744.9,36.63648126]
[1724671584726,0.00015528,2745.0,2744.9,37.91126568]
[1724671585135,0.00546508,2745.2,2745.1,2.18512]
[1724671585325,0.00546508,2745.2,2745.1,15.84037769]
[1724671585524,0.9101,2746.2,2745.1,15.84037769]
[1724671585525,4.187,2746.3,2745.3,1.82075]
[1724671585728,0.7246,2746.1,2746.0,0.36406]
[1724671585929,0.7246,2746.1,2746.0,2.10782041]
[1724671586131,0.72912378,2746.1,2746.0,2.10782041]
[1724671586738,0.72912378,2746.1,2746.0,2.10781636]
[1724671588230,0.72912378,2746.1,2746.0,1.54761131]
[1724671588728,0.72912378,2746.1,2746.0,2.10781043]
[1724671588930,0.72912378,2746.1,2746.0,0.36406]
[1724671589127,0.72912378,2746.1,2746.0,0.92425466]
[1724671589443,0.72912378,2746.1,2746.0,2.562949]
[1724671589444,0.36412378,2746.1,2746.0,2.562949]
[1724671589643,0.36412378,2746.1,2746.0,2.10775613]
[1724671589644,0.72642378,2746.1,2746.0,2.10775613]
[1724671589828,0.00452378,2746.1,2746.0,3.473119]
[1724671590033,0.00010463,2746.1,2746.0,11.60161589]
[1724671590238,0.00010463,2746.1,2746.0,14.41884941]
[1724671590535,0.00010463,2746.1,2746.0,18.00252756]
[1724671590932,0.00010463,2746.1,2746.0,17.62662756]
[1724671591134,0.00010463,2746.1,2746.0,14.16849323]
[1724671591437,0.00010463,2746.1,2746.0,15.59656164]
[1724671592328,0.00010463,2746.1,2746.0,15.2054278]
[1724671592842,0.00010463,2746.1,2746.0,15.59646863]
[1724671593037,0.00010463,2746.1,2746.0,15.22606863]
[1724671594336,0.00010463,2746.1,2746.0,13.79800022]
[1724671594537,0.00010463,2746.1,2746.0,15.22473334]
[1724671594736,0.00010463,2746.1,2746.0,13.79800022]
[1724671595441,0.00010463,2746.1,2746.0,15.22395905]
[1724671596143,0.00010463,2746.1,2746.0,14.4793903]
[1724671596335,0.00010463,2746.1,2746.0,14.02425366]
[1724671596538,0.00010463,2746.1,2746.0,13.05311459]
[1724671597547,0.00010463,2746.1,2746.0,11.2323578]
[1724671597735,0.00010463,2746.1,2746.0,13.05293008]
[1724671598243,0.00010463,2746.1,2746.0,11.2323578]
[1724671598437,0.00010463,2746.1,2746.0,10.67222456]
[1724671598747,0.00010463,2746.1,2746.0,9.59395212]
[1724671599044,0.00010463,2746.1,2746.0,11.23244203]
[1724671599249,0.00010463,2746.1,2746.0,13.0529864]
[1724671599434,0.00010463,2746.1,2746.0,14.47914443]
[1724671599629,0.00010463,2746.1,2746.0,13.05286979]
[1724671599833,0.00010463,2746.1,2746.0,14.47914443]
[1724671600045,0.00010463,2746.1,2746.0,13.05286979]
[1724671600438,0.00010463,2746.1,2746.0,11.23244203]
[1724671601140,0.00010463,2746.1,2746.0,10.77730591]
[1724671601546,0.00010463,2746.1,2746.0,9.59395199]
[1724671601731,0.00010463,2746.1,2746.0,10.77730282]
[1724671602835,0.00010463,2746.1,2746.0,4.75521083]
[1724671603342,0.38340463,2746.1,2746.0,4.75521083]
[1724671604747,0.38340463,2746.1,2746.0,3.57186]
[1724671604945,0.38340463,2746.1,2746.0,4.75535832]
[1724671607556,0.38340463,2746.1,2746.0,4.39129832]
[1724671607847,4.02500463,2746.1,2745.9,0.36407]
[1724671608044,0.38340463,2746.1,2746.0,1.54761749]
[1724671608253,4.02500463,2746.1,2746.0,1.54761749]
[1724671608853,4.02500463,2746.1,2746.0,1.18355749]
[1724671610140,4.02500463,2746.1,2746.0,1.54761749]
[1724671611248,4.02500463,2746.1,2746.0,1.5475936]
[1724671612045,4.02500463,2746.1,2746.0,1.1835336]
[1724671612252,4.02500463,2746.1,2746.0,0.45520523]
[1724671612253,4.38905463,2746.1,2746.0,0.45520523]
[1724671612443,4.02500463,2746.1,2746.0,0.45520523]
[1724671615857,4.02500463,2746.1,2746.0,1.18356379]
[1724671616156,4.02500463,2746.1,2746.0,1.18356528]
[1724671617452,4.02500463,2746.1,2746.0,0.45522741]
[1724671617759,4.02500463,2746.1,2746.0,1.18359128]
[1724671618059,4.02500463,2746.1,2746.0,2.85765128]
[1724671618363,4.02500463,2746.1,2746.0,1.67406]
[1724671618560,4.02500463,2746.1,2746.0,2.85759981]
[1724671619456,0.38340463,2746.1,2746.0,2.85759981]
[1724671621349,0.38340463,2746.1,2746.0,2.49353981]
[1724671621552,0.74745463,2746.1,2746.0,2.49353981]
[1724671622564,4.38905463,2746.1,2746.0,1.18353981]
[1724671622862,4.02500463,2746.1,2746.0,1.18363687]
[1724671623062,4.02500463,2746.1,2746.0,2.49363687]
[1724671623461,0.38340463,2746.1,2746.0,2.49363687]
[1724671623862,0.38340463,2746.1,2746.0,1.31]
[1724671624064,0.38340463,2746.1,2746.0,2.49361675]
[1724671625260,0.74745463,2746.1,2746.0,2.49361675]
[1724671625459,9.02500463,2746.1,2745.8,0.00546508]
[1724671625752,9.02500463,2746.1,2745.9,0.45530618]
[1724671625753,0.36407,2746.0,2745.9,0.45530618]
[1724671626065,0.36407,2746.0,2745.9,0.45529496]
[1724671626266,4.00567,2746.0,2745.9,1.18373526]
[1724671626455,4.00567,2746.0,2745.9,0.45528279]
[1724671626662,4.00567,2746.0,2745.9,1.18373412]
[1724671626964,4.00566,2746.0,2745.9,1.18373412]
[1724671627169,3.6416,2746.0,2745.9,2.85780412]
[1724671627667,3.95526463,2746.1,2745.9,2.85780412]
[1724671627860,3.95526463,2746.1,2746.0,0.45528279]
[1724671628161,7.59686463,2746.1,2746.0,0.45528279]
[1724671629157,8.14294463,2746.1,2745.8,1.67955508]
[1724671629362,0.36408,2745.9,2745.8,1.67955508]
[1724671629555,0.36408,2745.9,2745.8,2.40798058]
[1724671630161,4.50134463,2746.1,2745.9,0.36407]
[1724671630162,0.36407,2746.0,2745.9,0.36407]
[1724671630466,0.36407,2746.0,2745.9,1.54776144]
[1724671631561,3.20790463,2746.1,2745.9,2.49369144]
[1724671631760,3.20790463,2746.1,2746.0,1.54775144]
[1724671631956,3.20790463,2746.1,2746.0,1.92815144]
[1724671634562,0.00010463,2746.1,2746.0,1.92815144]
[1724671634767,0.00010463,2746.1,2746.0,7.53611905]
[1724671634959,0.00010463,2746.1,2746.0,10.57674299]
[1724671635361,0.00010463,2746.1,2746.0,8.81671244]
[1724671635566,0.00010463,2746.1,2746.0,10.57666634]
[1724671636165,0.00010463,2746.1,2746.0,9.1503917]
[1724671638676,0.00010463,2746.1,2746.0,10.57933295]
[1724671638873,0.00010463,2746.1,2746.0,9.15004047]
[1724671639067,0.00010463,2746.1,2746.0,10.57924396]
[1724671639375,0.00010463,2746.1,2746.0,9.15004047]
[1724671639868,0.00010463,2746.1,2746.0,10.70112256]
[1724671640074,0.00010463,2746.1,2746.0,12.60821793]
[1724671640468,0.00546508,2746.3,2746.2,0.36404]
[1724671640776,0.00546508,2746.3,2746.2,6.43802047]
[1724671640971,0.00546508,2746.3,2746.2,13.53770234]
[1724671641171,0.00546508,2746.3,2746.2,13.89960234]
[1724671641466,0.00954813,2746.3,2746.2,19.69960234]
[1724671641671,0.00954813,2746.3,2746.2,15.20524575]
[1724671641875,0.00954813,2746.3,2746.2,18.58012775]
[1724671642065,0.00954813,2746.3,2746.2,19.30829706]
[1724671642267,0.00954813,2746.3,2746.2,19.69930521]
[1724671642671,0.00954813,2746.3,2746.2,20.60940521]
[1724671643367,0.3505,2747.1,2746.7,0.36397]
[1724671643570,0.3505,2747.1,2747.0,1.31]
[1724671643771,0.3505,2747.1,2747.0,1.76510582]
[1724671643970,3.9905,2747.1,2747.0,2.4932496]
[1724671644175,4.35442,2747.1,2747.0,2.4932496]
[1724671644474,3.99383844,2747.1,2747.0,1.76806558]
[1724671644669,3.99383844,2747.1,2747.0,2.49619279]
[1724671644874,3.99383844,2747.1,2747.0,1.31295976]
[1724671645177,3.99383844,2747.1,2747.0,2.49617609]
[1724671645365,4.35775844,2747.1,2747.0,1.18617609]
[1724671645567,4.72635844,2747.1,2747.0,1.76804296]
[1724671646265,11.03635844,2747.1,2746.5,1.40769378]
[1724671646463,11.03635844,2747.1,2746.6,1.18330733]
[1724671646464,1.67397,2746.7,2746.6,1.18330733]
[1724671646672,0.36397,2746.7,2746.6,1.18330733]
[1724671646863,0.36397,2746.7,2746.6,2.49330733]
[1724671646864,4.00477,2746.7,2746.6,2.49330733]
[1724671647578,4.00477,2746.7,2746.6,2.49696325]
[1724671647885,4.00477,2746.7,2746.6,1.31365592]
[1724671648278,4.00477,2746.7,2746.6,2.49700934]
[1724671648465,3.6408,2746.7,2746.6,2.49700934]
[1724671649278,0.74297,2746.8,2746.6,2.86098934]
[1724671649480,0.74297,2746.8,2746.7,2.49335342]
[1724671649774,4.38377,2746.8,2746.7,2.49335342]
[1724671650475,4.0198,2746.8,2746.7,2.49335342]
[1724671650676,4.38376,2746.8,2746.7,2.49335342]
[1724671651077,4.0198,2746.8,2746.7,2.85732342]
[1724671651681,4.38376,2746.8,2746.7,2.49328892]
[1724671651877,4.38376,2746.8,2746.7,2.85725892]
[1724671652481,4.38376,2746.8,2746.7,2.49328892]
[1724671654478,4.38376,2746.8,2746.7,2.49330095]
[1724671655282,0.74296,2746.8,2746.7,2.85727095]
[1724671655478,0.379,2746.8,2746.7,2.85727095]
[1724671656772,0.72243844,2747.1,2746.7,2.49330095]
[1724671656973,0.3717,2747.0,2746.9,1.67394]
[1724671657275,0.73563,2747.0,2746.9,1.76511575]
[1724671657476,4.37643,2747.0,2746.9,1.76511575]
[1724671657675,4.37643,2747.0,2746.9,1.31]
[1724671657867,4.37643,2747.0,2746.9,1.76508964]
[1724671658370,4.37643,2747.0,2746.9,0.45508964]
[1724671658577,5.28626,2747.0,2746.9,0.45508964]
[1724671659381,4.37643,2747.0,2746.9,0.45508964]
[1724671660667,4.37643,2747.0,2746.9,1.76508964]
[1724671660865,4.37643,2747.0,2746.9,1.31]
[1724671661068,4.37643,2747.0,2746.9,1.76510361]
[1724671661672,5.28626,2747.0,2746.9,0.45510361]
[1724671662881,6.59626,2747.0,2746.9,0.45510361]
[1724671664193,6.59626,2747.0,2746.7,1.31]
[1724671664194,0.36396,2746.8,2746.7,1.31]
[1724671664576,0.36396,2746.8,2746.7,2.85727746]
[1724671664781,0.36396,2746.8,2746.7,2.49330746]
[1724671665087,0.36395,2746.9,2746.7,2.49330746]
[1724671665274,0.36395,2746.9,2746.8,0.45511824]
[1724671665471,0.36395,2746.9,2746.8,1.76511824]
[1724671665878,0.36395,2746.9,2746.8,2.12907824]
[1724671666087,0.36395,2746.9,2746.8,1.76511824]
[1724671666285,4.00475,2746.9,2746.8,1.76511824]
[1724671666486,0.36395,2746.9,2746.8,1.76511824]
[1724671666787,4.00475,2746.9,2746.8,1.76511824]
[1724671667285,3.6408,2746.9,2746.8,2.12907824]
[1724671667481,4.00474,2746.9,2746.8,1.76511824]
[1724671667792,4.00474,2746.9,2746.8,2.8572378]
[1724671668178,4.00474,2746.9,2746.8,1.1832778]
[1724671668785,4.91461,2746.9,2746.8,1.1832778]
[1724671668981,4.91461,2746.9,2746.8,0.45511824]
[1724671669877,4.00474,2746.9,2746.8,0.45511824]
[1724671671493,0.36396,2746.8,2746.7,1.31]
[1724671671791,0.36396,2746.8,2746.7,2.49330491]
[1724671671992,4.00476,2746.8,2746.7,2.49330491]
[1724671673287,3.6408,2746.8,2746.7,2.49330491]
[1724671674186,3.6408,2746.8,2746.7,2.85727491]
[1724671675294,0.36395,2746.9,2746.7,2.85727491]
[1724671675481,0.36395,2746.9,2746.8,1.08289247]
[1724671675688,0.36395,2746.9,2746.8,1.53800491]
[1724671675990,0.73564,2747.0,2746.8,1.53800491]
[1724671676183,0.73564,2747.0,2746.9,1.53970491]
[1724671676382,0.73564,2747.0,2746.9,1.54080491]